[Event "Eurasia Open Cup 2019"]
[Site "Ekaterinburg"]
[Date "2019.08.02"]
[Round "3.23"]
[White "Savitskiy, Sergey"]
[Black "Novikov, Evgenij"]
[Result "1-0"]
[ECO "B01"]
[WhiteElo "2418"]
[BlackElo "2164"]
[Annotator "NA"]
[PlyCount "93"]
[EventDate "2019.07.31"]
[EventType "swiss"]
[EventCountry "RUS"]
[SourceTitle "playchess.com"]
[Source "ChessBase"]
[SourceQuality "1"]
[TimeControl "5400+30"]

1. e4 {[%emt 0:00:00]} d5 {[%emt 0:00:00]} 2. exd5 {[%emt 0:00:00]} Qxd5 {[%emt 0:00:00]} 3. Nc3 {[%emt 0:00:00]} Qd6 {[%emt 0:00:00]} 4. d4 {[%emt 0:00:00]} Nf6 {[%emt 0:00:00]} 5. Nf3 {[%emt 0:00:18]} c6 {[%emt 0:00:00]} 6. Ne5 {[%emt 0:07:17]} Nbd7 {[%emt 0:00:13]} 7. Nc4 {[%emt 0:00:27]} Qc7 {[%emt 0:00:00]} 8. Qf3 {[%emt 0:01:14]} Nb6 {[%emt 0:00:00]} 9. h3 {[%emt 0:03:03]} Nxc4 {[%emt 0:00:40]} 10. Bxc4 {[%emt 0:01:12]} e6 {[%emt 0:00:05]} 11. Bd2 {[%emt 0:05:19]} Bd7 {[%emt 0:07:52]} 12. O-O-O {[%emt 0:01:34]} O-O-O {[%emt 0:19:19]} 13. Bg5 {[%emt 0:03:13]} Be7 {[%emt 0:06:33]} 14. Ne4 {[%emt 0:01:34]} Nxe4 {[%emt 0:00:00]} 15. Bxe7 {[%emt 0:00:20]} Rde8 {[%emt 0:00:00]} 16. Ba3 {[%emt 0:04:47]} f5 {[%emt 0:06:13]} 17. h4 {[%emt 0:03:48]} Qa5 {[%emt 0:08:04]} 18. c3 {[%emt 0:11:03]} b5 {[%emt 0:02:55]} 19. Bb3 {[%emt 0:00:33]} Qb6 {[%emt 0:00:08]} 20. Qe3 {[%emt 0:06:48]} e5 {[%emt 0:04:04]} 21. Bf7 {[%emt 0:16:07]} exd4 {[%emt 0:00:59]} 22. Rxd4 {[%emt 0:01:46]} c5 {[%emt 0:03:07]} 23. Bxe8 {[%emt 0:02:07]} cxd4 {[%emt 0:00:37]} 24. Bxd7+ {[%emt 0:00:17]} Kxd7 {[%emt 0:00:04]} 25. Rd1 {[%emt 0:00:36]} Kc8 {[%emt 0:06:28]} 26. Rxd4 {[%emt 0:00:52]} Rd8 {[%emt 0:00:00]} 27. Rxd8+ {[%emt 0:01:00]} Qxd8 {[%emt 0:00:19]} 28. f3 {[%emt 0:01:09]} Ng3 {[%emt 0:05:21]} 29. Qc5+ {[%emt 0:02:39]} Kb7 {[%emt 0:06:24]} 30. Qxb5+ {[%emt 0:01:22]} Qb6 {[%emt 0:02:49]} 31. Qxb6+ {[%emt 0:01:33]} axb6 {[%emt 0:00:13]} 32. Kd2 {[%emt 0:00:00]} Kc6 {[%emt 0:01:03]} 33. c4 {[%emt 0:00:21]} f4 {[%emt 0:01:00]} 34. Bf8 {[%emt 0:03:59]} Nf5 {[%emt 0:10:15]} 35. h5 {[%emt 0:01:34]} g6 {[%emt 0:00:09]} 36. hxg6 {[%emt 0:00:00]} hxg6 {[%emt 0:00:03]} 37. a4 {[%emt 0:04:39]} Ne3 {[%emt 0:01:42]} 38. Kd3 {[%emt 0:01:33]} Nxg2 {[%emt 0:00:19]} 39. b4 {[%emt 0:00:00]} Ne1+ {[%emt 0:09:43]} 40. Ke4 {[%emt 0:00:37]} Nc2 {[%emt 0:01:38]} 41. b5+ {[%emt 0:01:41]} Kd7 {[%emt 0:00:00]} 42. c5 {[%emt 0:00:00]} bxc5 {[%emt 0:00:27]} 43. Bxc5 {[%emt 0:00:00]} g5 {[%emt 0:00:28]} 44. a5 {[%emt 0:00:08]} Kc7 {[%emt 0:00:07]} 45. a6 {[%emt 0:00:09]} Ne1 {[%emt 0:00:35]} 46. b6+ {[%emt 0:00:38]} Kc6 {[%emt 0:00:10]} 47. b7 {[%emt 0:00:00]} 1-0

[Event "Eurasia Open Cup 2019"]
[Site "Ekaterinburg"]
[Date "2019.08.02"]
[Round "3.24"]
[White "Pastukhov, Leonid"]
[Black "Pogromsky, Mikhail"]
[Result "1-0"]
[ECO "A34"]
[WhiteElo "2215"]
[BlackElo "2414"]
[Annotator "NA"]
[PlyCount "71"]
[EventDate "2019.07.31"]
[EventType "swiss"]
[EventCountry "RUS"]
[SourceTitle "playchess.com"]
[Source "ChessBase"]
[SourceQuality "1"]
[TimeControl "5400+30"]

1. Nf3 {[%emt 0:00:00]} Nf6 {[%emt 0:00:50]} 2. c4 {[%emt 0:01:33]} c5 {[%emt 0:01:45]} 3. Nc3 {[%emt 0:01:31]} e6 {[%emt 0:01:37]} 4. e4 {[%emt 0:02:21]} Nc6 {[%emt 0:03:13]} 5. h3 {[%emt 0:07:07]} d5 {[%emt 0:05:57]} 6. e5 {[%emt 0:02:24]} Nd7 {[%emt 0:04:13]} 7. cxd5 {[%emt 0:01:27]} exd5 {[%emt 0:00:34]} 8. Bb5 {[%emt 0:00:36]} d4 {[%emt 0:11:33]} 9. Ne2 {[%emt 0:03:18]} Qc7 {[%emt 0:03:03]} 10. O-O {[%emt 0:00:01]} a6 {[%emt 0:04:44]} 11. Bxc6 {[%emt 0:03:13]} Qxc6 {[%emt 0:00:13]} 12. Qc2 {[%emt 0:01:39]} a5 {[%emt 0:07:01]} 13. d3 {[%emt 0:06:02]} Be7 {[%emt 0:04:11]} 14. Bf4 {[%emt 0:09:32]} Nb6 {[%emt 0:11:15]} 15. Rac1 {[%emt 0:00:53]} h6 {[%emt 0:05:15]} 16. Qd2 {[%emt 0:07:07]} Qd5 {[%emt 0:01:17]} 17. Bh2 {[%emt 0:06:20]} g5 {[%emt 0:01:54]} 18. Ng3 {[%emt 0:03:30]} Bxh3 {[%emt 0:03:34]} 19. Ne4 {[%emt 0:00:08]} Be6 {[%emt 0:03:50]} 20. Rxc5 {[%emt 0:00:27]} Qd8 {[%emt 0:02:15]} 21. Nd6+ {[%emt 0:01:07]} Bxd6 {[%emt 0:00:48]} 22. exd6 {[%emt 0:00:00]} Nd7 {[%emt 0:00:05]} 23. Rc7 {[%emt 0:02:28]} Qf6 {[%emt 0:00:44]} 24. Rxd7 {[%emt 0:05:45]} Kxd7 {[%emt 0:00:14]} 25. Ne5+ {[%emt 0:00:39]} Ke8 {[%emt 0:01:29]} 26. Qc2 {[%emt 0:00:12]} Kf8 {[%emt 0:01:40]} 27. Qc5 {[%emt 0:01:05]} b6 {[%emt 0:03:48]} 28. Qxd4 {[%emt 0:01:27]} Kg7 {[%emt 0:00:19]} 29. f4 {[%emt 0:00:48]} g4 {[%emt 0:01:10]} 30. f5 {[%emt 0:00:47]} Bxa2 {[%emt 0:00:08]} 31. Qa4 {[%emt 0:01:51]} Rhe8 {[%emt 0:01:43]} 32. Nxg4 {[%emt 0:01:56]} b5 {[%emt 0:03:38]} 33. Qf4 {[%emt 0:02:52]} Qg5 {[%emt 0:02:12]} 34. Qd4+ {[%emt 0:00:00]} f6 {[%emt 0:00:00]} 35. Bf4 {[%emt 0:00:28]} Qh4 {[%emt 0:00:24]} 36. g3 {[%emt 0:01:13]} 1-0

[Event "Eurasia Open Cup 2019"]
[Site "Ekaterinburg"]
[Date "2019.08.02"]
[Round "3.25"]
[White "Bivol, Alina"]
[Black "Pogorelskikh, Sofia"]
[Result "1-0"]
[ECO "B52"]
[WhiteElo "2391"]
[BlackElo "2189"]
[Annotator "NA"]
[PlyCount "95"]
[EventDate "2019.07.31"]
[EventType "swiss"]
[EventCountry "RUS"]
[SourceTitle "playchess.com"]
[Source "ChessBase"]
[SourceQuality "1"]
[TimeControl "5400+30"]

1. e4 {[%emt 0:00:00]} c5 {[%emt 0:00:00]} 2. Nf3 {[%emt 0:00:06]} d6 {[%emt 0:00:00]} 3. Bb5+ {[%emt 0:00:50]} Bd7 {[%emt 0:00:00]} 4. Bxd7+ {[%emt 0:00:25]} Qxd7 {[%emt 0:00:00]} 5. c4 {[%emt 0:00:25]} Nf6 {[%emt 0:06:07]} 6. Nc3 {[%emt 0:00:30]} g6 {[%emt 0:01:11]} 7. d4 {[%emt 0:01:18]} cxd4 {[%emt 0:00:31]} 8. Nxd4 {[%emt 0:00:10]} Bg7 {[%emt 0:01:45]} 9. f3 {[%emt 0:00:06]} O-O {[%emt 0:02:35]} 10. Be3 {[%emt 0:01:09]} Rc8 {[%emt 0:08:06]} 11. b3 {[%emt 0:02:12]} Nc6 {[%emt 0:15:36]} 12. O-O {[%emt 0:00:36]} e6 {[%emt 0:08:09]} 13. Rc1 {[%emt 0:12:08]} d5 {[%emt 0:05:18]} 14. cxd5 {[%emt 0:02:29]} exd5 {[%emt 0:01:04]} 15. Nxc6 {[%emt 0:01:15]} bxc6 {[%emt 0:02:25]} 16. e5 {[%emt 0:03:48]} Qe6 {[%emt 0:03:11]} 17. f4 {[%emt 0:04:51]} Ng4 {[%emt 0:03:00]} 18. Bc5 {[%emt 0:02:09]} h5 {[%emt 0:06:27]} 19. Ne2 {[%emt 0:01:20]} Nh6 {[%emt 0:03:53]} 20. Nd4 {[%emt 0:03:52]} Qd7 {[%emt 0:00:55]} 21. Qd3 {[%emt 0:07:23]} Nf5 {[%emt 0:02:50]} 22. Nxf5 {[%emt 0:01:37]} Qxf5 {[%emt 0:00:10]} 23. Qxf5 {[%emt 0:00:23]} gxf5 {[%emt 0:00:05]} 24. Rf3 {[%emt 0:00:05]} Bh6 {[%emt 0:02:23]} 25. Rcf1 {[%emt 0:00:44]} Bf8 {[%emt 0:09:36]} 26. Rg3+ {[%emt 0:00:05]} Kh7 {[%emt 0:00:27]} 27. Bxf8 {[%emt 0:00:14]} Rxf8 {[%emt 0:00:05]} 28. Rg5 {[%emt 0:00:04]} f6 {[%emt 0:02:05]} 29. exf6 {[%emt 0:03:51]} Rxf6 {[%emt 0:00:09]} 30. Re1 {[%emt 0:00:05]} Kh6 {[%emt 0:03:43]} 31. Re3 {[%emt 0:01:57]} a5 {[%emt 0:04:02]} 32. Rh3 {[%emt 0:00:50]} Rg6 {[%emt 0:00:13]} 33. Rgxh5+ {[%emt 0:00:40]} Kg7 {[%emt 0:00:09]} 34. Rh7+ {[%emt 0:00:18]} Kf6 {[%emt 0:00:18]} 35. Rc7 {[%emt 0:00:00]} Re8 {[%emt 0:03:04]} 36. Rc3 {[%emt 0:00:57]} Re6 {[%emt 0:01:59]} 37. R3xc6 {[%emt 0:00:34]} Rg8 {[%emt 0:00:30]} 38. Rxe6+ {[%emt 0:01:09]} Kxe6 {[%emt 0:00:04]} 39. Rc6+ {[%emt 0:00:09]} Kd7 {[%emt 0:00:17]} 40. Rc5 {[%emt 0:05:00]} Kd6 {[%emt 0:00:13]} 41. Rxa5 {[%emt 0:00:33]} d4 {[%emt 0:00:09]} 42. Kf2 {[%emt 0:05:09]} d3 {[%emt 0:01:00]} 43. g3 {[%emt 0:01:36]} Rh8 {[%emt 0:01:38]} 44. Ke3 {[%emt 0:00:29]} Rxh2 {[%emt 0:00:19]} 45. Kxd3 {[%emt 0:00:07]} Rg2 {[%emt 0:00:18]} 46. Kd4 {[%emt 0:00:48]} Rxg3 {[%emt 0:00:37]} 47. Ra6+ {[%emt 0:00:22]} Ke7 {[%emt 0:00:07]} 48. Ke5 {[%emt 0:00:04]} 1-0

[Event "Eurasia Open Cup 2019"]
[Site "Ekaterinburg"]
[Date "2019.08.02"]
[Round "3.26"]
[White "Chekletsov, Ilya"]
[Black "Gabdrakhmanov, Azat"]
[Result "1-0"]
[ECO "A05"]
[WhiteElo "2374"]
[BlackElo "2111"]
[Annotator "NA"]
[PlyCount "91"]
[EventDate "2019.07.31"]
[EventType "swiss"]
[EventCountry "RUS"]
[SourceTitle "playchess.com"]
[Source "ChessBase"]
[SourceQuality "1"]
[TimeControl "5400+30"]

1. b3 {[%emt 0:00:00]} e5 {[%emt 0:00:26]} 2. Bb2 {[%emt 0:00:00]} d6 {[%emt 0:00:01]} 3. g3 {[%emt 0:00:12]} Nf6 {[%emt 0:03:20]} 4. Bg2 {[%emt 0:00:08]} g6 {[%emt 0:00:13]} 5. d3 {[%emt 0:00:22]} Bg7 {[%emt 0:00:08]} 6. Nf3 {[%emt 0:00:05]} O-O {[%emt 0:00:15]} 7. O-O {[%emt 0:00:05]} Nc6 {[%emt 0:00:25]} 8. h3 {[%emt 0:01:24]} a5 {[%emt 0:01:13]} 9. a3 {[%emt 0:00:00]} Re8 {[%emt 0:00:37]} 10. e4 {[%emt 0:02:44]} d5 {[%emt 0:02:53]} 11. Nbd2 {[%emt 0:02:36]} d4 {[%emt 0:02:17]} 12. Qe2 {[%emt 0:00:25]} Qe7 {[%emt 0:02:30]} 13. Kh2 {[%emt 0:00:33]} a4 {[%emt 0:03:15]} 14. b4 {[%emt 0:00:08]} Na7 {[%emt 0:02:51]} 15. c3 {[%emt 0:06:54]} dxc3 {[%emt 0:00:25]} 16. Bxc3 {[%emt 0:00:00]} Nd7 {[%emt 0:01:34]} 17. d4 {[%emt 0:00:44]} c6 {[%emt 0:00:33]} 18. Bb2 {[%emt 0:05:23]} Nb5 {[%emt 0:00:49]} 19. d5 {[%emt 0:04:30]} Nd6 {[%emt 0:02:23]} 20. dxc6 {[%emt 0:00:15]} bxc6 {[%emt 0:02:00]} 21. Rfc1 {[%emt 0:06:35]} Ba6 {[%emt 0:00:07]} 22. Qe3 {[%emt 0:00:05]} Bb5 {[%emt 0:00:47]} 23. Bf1 {[%emt 0:00:07]} Bxf1 {[%emt 0:03:38]} 24. Nxf1 {[%emt 0:04:01]} Rec8 {[%emt 0:05:29]} 25. Rc2 {[%emt 0:02:53]} Rc7 {[%emt 0:01:44]} 26. Rac1 {[%emt 0:01:11]} Rac8 {[%emt 0:04:47]} 27. N1d2 {[%emt 0:03:49]} f6 {[%emt 0:01:06]} 28. Ne1 {[%emt 0:01:12]} Qe6 {[%emt 0:01:32]} 29. Nd3 {[%emt 0:02:42]} Bf8 {[%emt 0:02:22]} 30. f4 {[%emt 0:01:00]} Nf7 {[%emt 0:00:38]} 31. Nf3 {[%emt 0:05:33]} Bd6 {[%emt 0:03:13]} 32. Kg2 {[%emt 0:04:23]} Qb3 {[%emt 0:01:41]} 33. Rc4 {[%emt 0:03:31]} exf4 {[%emt 0:00:44]} 34. gxf4 {[%emt 0:16:05]} Bxf4 {[%emt 0:02:16]} 35. Qe2 {[%emt 0:01:30]} Nde5 {[%emt 0:01:04]} 36. Nxf4 {[%emt 0:00:48]} Nxc4 {[%emt 0:06:50]} 37. Rxc4 {[%emt 0:04:54]} Rd7 {[%emt 0:02:24]} 38. Bxf6 {[%emt 0:00:08]} Re8 {[%emt 0:05:28]} 39. e5 {[%emt 0:01:44]} Rd1 {[%emt 0:01:07]} 40. e6 {[%emt 0:03:18]} Nd6 {[%emt 0:01:59]} 41. Rc3 {[%emt 0:03:32]} Qb1 {[%emt 0:00:16]} 42. e7 {[%emt 0:00:07]} Nf7 {[%emt 0:00:21]} 43. Rxc6 {[%emt 0:00:14]} Rc1 {[%emt 0:03:36]} 44. Rxc1 {[%emt 0:02:51]} Qxc1 {[%emt 0:01:38]} 45. Qe4 {[%emt 0:04:12]} Qxa3 {[%emt 0:00:17]} 46. Qc6 {[%emt 0:00:22]} 1-0

[Event "Eurasia Open Cup 2019"]
[Site "Ekaterinburg"]
[Date "2019.08.02"]
[Round "3.27"]
[White "Averyanov, Grigori"]
[Black "Tunik, Gennady"]
[Result "1/2-1/2"]
[ECO "A17"]
[WhiteElo "2131"]
[BlackElo "2371"]
[Annotator "NA"]
[PlyCount "136"]
[EventDate "2019.07.31"]
[EventType "swiss"]
[EventCountry "RUS"]
[SourceTitle "playchess.com"]
[Source "ChessBase"]
[SourceQuality "1"]
[TimeControl "5400+30"]

1. Nf3 {[%emt 0:00:00]} Nf6 {[%emt 0:00:00]} 2. c4 {[%emt 0:00:00]} e6 {[%emt 0:00:00]} 3. Nc3 {[%emt 0:00:00]} Bb4 {[%emt 0:00:00]} 4. Qc2 {[%emt 0:00:10]} c5 {[%emt 0:00:34]} 5. a3 {[%emt 0:00:00]} Ba5 {[%emt 0:00:14]} 6. g3 {[%emt 0:05:00]} Nc6 {[%emt 0:00:35]} 7. Bg2 {[%emt 0:00:18]} O-O {[%emt 0:01:31]} 8. O-O {[%emt 0:00:08]} d6 {[%emt 0:01:04]} 9. d3 {[%emt 0:06:34]} h6 {[%emt 0:00:43]} 10. Rb1 {[%emt 0:01:34]} Rb8 {[%emt 0:04:45]} 11. e4 {[%emt 0:19:48]} Ng4 {[%emt 0:11:17]} 12. Ne2 {[%emt 0:01:42]} Nge5 {[%emt 0:06:08]} 13. Ne1 {[%emt 0:03:11]} Ng6 {[%emt 0:06:25]} 14. f4 {[%emt 0:00:59]} Nge7 {[%emt 0:00:56]} 15. Be3 {[%emt 0:02:46]} f5 {[%emt 0:01:45]} 16. Nf3 {[%emt 0:02:29]} Bb6 {[%emt 0:01:48]} 17. Bf2 {[%emt 0:11:03]} a5 {[%emt 0:05:34]} 18. Rbd1 {[%emt 0:04:20]} e5 {[%emt 0:01:17]} 19. fxe5 {[%emt 0:01:35]} dxe5 {[%emt 0:00:10]} 20. Nc3 {[%emt 0:00:09]} Nd4 {[%emt 0:02:53]} 21. Nxd4 {[%emt 0:02:07]} exd4 {[%emt 0:00:00]} 22. Ne2 {[%emt 0:02:29]} fxe4 {[%emt 0:00:36]} 23. Bxe4 {[%emt 0:00:13]} Bc7 {[%emt 0:03:13]} 24. b4 {[%emt 0:01:22]} axb4 {[%emt 0:01:02]} 25. axb4 {[%emt 0:00:08]} b6 {[%emt 0:00:03]} 26. bxc5 {[%emt 0:00:41]} bxc5 {[%emt 0:00:04]} 27. Rb1 {[%emt 0:00:04]} Bf5 {[%emt 0:04:26]} 28. Rxb8 {[%emt 0:01:49]} Bxb8 {[%emt 0:00:06]} 29. Bg2 {[%emt 0:00:51]} Ng6 {[%emt 0:00:17]} 30. h3 {[%emt 0:04:54]} h5 {[%emt 0:02:45]} 31. Qd1 {[%emt 0:04:40]} Qd7 {[%emt 0:04:19]} 32. Bd5+ {[%emt 0:02:10]} Be6 {[%emt 0:00:49]} 33. Be4 {[%emt 0:00:14]} Ne7 {[%emt 0:03:25]} 34. Nc1 {[%emt 0:06:14]} g6 {[%emt 0:02:51]} 35. h4 {[%emt 0:00:02]} Bg4 {[%emt 0:01:21]} 36. Qd2 {[%emt 0:02:28]} Nf5 {[%emt 0:04:01]} 37. Qg5 {[%emt 0:01:15]} Kg7 {[%emt 0:00:26]} 38. Be1 {[%emt 0:00:50]} Qd8 {[%emt 0:03:39]} 39. Qxd8 {[%emt 0:00:31]} Rxd8 {[%emt 0:00:38]} 40. Bxf5 {[%emt 0:02:23]} Bxf5 {[%emt 0:00:00]} 41. Ba5 {[%emt 0:03:04]} Re8 {[%emt 0:00:00]} 42. Re1 {[%emt 0:00:48]} Rc8 {[%emt 0:00:47]} 43. Kg2 {[%emt 0:00:18]} Bd6 {[%emt 0:01:53]} 44. Bd2 {[%emt 0:00:56]} Rb8 {[%emt 0:00:08]} 45. Re2 {[%emt 0:02:41]} Rb1 {[%emt 0:03:14]} 46. Rf2 {[%emt 0:00:30]} Kg8 {[%emt 0:00:58]} 47. Bg5 {[%emt 0:01:02]} Kf7 {[%emt 0:01:33]} 48. Ra2 {[%emt 0:00:39]} Ke6 {[%emt 0:02:42]} 49. Re2+ {[%emt 0:01:02]} Kd7 {[%emt 0:00:00]} 50. Ra2 {[%emt 0:00:00]} Kc7 {[%emt 0:00:13]} 51. Ra7+ {[%emt 0:00:40]} Kb6 {[%emt 0:00:12]} 52. Ra2 {[%emt 0:01:04]} Kb7 {[%emt 0:00:40]} 53. Bh6 {[%emt 0:00:00]} Rb6 {[%emt 0:01:56]} 54. Bg5 {[%emt 0:02:19]} Ra6 {[%emt 0:00:00]} 55. Rxa6 {[%emt 0:00:14]} Kxa6 {[%emt 0:00:53]} 56. Bd2 {[%emt 0:01:01]} Kb6 {[%emt 0:00:34]} 57. Kf2 {[%emt 0:01:05]} Kc6 {[%emt 0:00:06]} 58. Kf3 {[%emt 0:00:00]} Kd7 {[%emt 0:00:28]} 59. Bf4 {[%emt 0:00:39]} Be7 {[%emt 0:01:04]} 60. Ke2 {[%emt 0:01:51]} Bg4+ {[%emt 0:00:27]} 61. Kd2 {[%emt 0:00:16]} Bf3 {[%emt 0:01:37]} 62. Nb3 {[%emt 0:00:03]} Bc6 {[%emt 0:00:21]} 63. Ke2 {[%emt 0:00:58]} Ke6 {[%emt 0:00:21]} 64. Nd2 {[%emt 0:00:52]} Kf5 {[%emt 0:00:19]} 65. Nf3 {[%emt 0:00:17]} Be8 {[%emt 0:00:34]} 66. Kf2 {[%emt 0:00:26]} Bc6 {[%emt 0:03:21]} 67. Ke2 {[%emt 0:01:07]} Be8 {[%emt 0:01:03]} 68. Kf2 {[%emt 0:00:20]} Bc6 {[%emt 0:02:13]} 1/2-1/2

[Event "Eurasia Open Cup 2019"]
[Site "Ekaterinburg"]
[Date "2019.08.02"]
[Round "3.28"]
[White "Vinokur, Yuliya"]
[Black "Postnikov, Daniil"]
[Result "1/2-1/2"]
[ECO "D87"]
[WhiteElo "2013"]
[BlackElo "2354"]
[Annotator "NA"]
[PlyCount "141"]
[EventDate "2019.07.31"]
[EventType "swiss"]
[EventCountry "RUS"]
[SourceTitle "playchess.com"]
[Source "ChessBase"]
[SourceQuality "1"]
[TimeControl "5400+30"]

1. d4 {[%emt 0:00:00]} Nf6 {[%emt 0:00:00]} 2. c4 {[%emt 0:00:00]} g6 {[%emt 0:00:00]} 3. Nc3 {[%emt 0:00:00]} d5 {[%emt 0:00:00]} 4. cxd5 {[%emt 0:00:11]} Nxd5 {[%emt 0:00:00]} 5. e4 {[%emt 0:01:22]} Nxc3 {[%emt 0:00:00]} 6. bxc3 {[%emt 0:00:00]} Bg7 {[%emt 0:00:00]} 7. Bc4 {[%emt 0:00:45]} c5 {[%emt 0:00:00]} 8. Ne2 {[%emt 0:01:20]} Nc6 {[%emt 0:00:00]} 9. Be3 {[%emt 0:00:42]} O-O {[%emt 0:00:00]} 10. O-O {[%emt 0:01:07]} Bd7 {[%emt 0:02:51]} 11. Rb1 {[%emt 0:01:44]} Qc7 {[%emt 0:04:02]} 12. Bd3 {[%emt 0:02:38]} Rad8 {[%emt 0:01:51]} 13. Qc1 {[%emt 0:00:33]} f5 {[%emt 0:05:54]} 14. e5 {[%emt 0:14:28]} Be6 {[%emt 0:05:07]} 15. Rd1 {[%emt 0:09:30]} Bxa2 {[%emt 0:06:10]} 16. Rb2 {[%emt 0:04:46]} Bf7 {[%emt 0:03:39]} 17. f4 {[%emt 0:00:15]} c4 {[%emt 0:01:52]} 18. Bc2 {[%emt 0:02:31]} Bd5 {[%emt 0:00:55]} 19. Ng3 {[%emt 0:12:31]} Na5 {[%emt 0:03:16]} 20. Qa1 {[%emt 0:01:37]} b6 {[%emt 0:00:24]} 21. Nf1 {[%emt 0:01:21]} e6 {[%emt 0:02:59]} 22. Bf2 {[%emt 0:00:55]} Bh6 {[%emt 0:02:16]} 23. Bh4 {[%emt 0:03:19]} Bxf4 {[%emt 0:00:26]} 24. Bxd8 {[%emt 0:02:19]} Qxd8 {[%emt 0:00:35]} 25. Re1 {[%emt 0:08:14]} Ba8 {[%emt 0:10:07]} 26. Bd1 {[%emt 0:03:06]} Rf7 {[%emt 0:02:59]} 27. Rf2 {[%emt 0:02:19]} Bh6 {[%emt 0:04:27]} 28. Ne3 {[%emt 0:01:49]} b5 {[%emt 0:03:42]} 29. Ra2 {[%emt 0:05:17]} Qh4 {[%emt 0:00:16]} 30. Ree2 {[%emt 0:05:13]} f4 {[%emt 0:05:24]} 31. Nf1 {[%emt 0:03:12]} f3 {[%emt 0:02:35]} 32. Rf2 {[%emt 0:00:25]} fxg2 {[%emt 0:01:35]} 33. Rxf7 {[%emt 0:02:24]} gxf1=Q+ {[%emt 0:03:46]} 34. Kxf1 {[%emt 0:02:03]} Kxf7 {[%emt 0:07:47]} 35. Rf2+ {[%emt 0:00:01]} Ke8 {[%emt 0:14:43]} 36. Qxa5 {[%emt 0:00:48]} Bc6 {[%emt 0:00:05]} 37. Qc7 {[%emt 0:03:08]} Bd7 {[%emt 0:03:16]} 38. Qb8+ {[%emt 0:01:04]} Qd8 {[%emt 0:01:31]} 39. Qxa7 {[%emt 0:00:09]} Qh4 {[%emt 0:01:18]} 40. Qa8+ {[%emt 0:03:38]} Qd8 {[%emt 0:00:42]} 41. Qe4 {[%emt 0:00:10]} Qg5 {[%emt 0:00:52]} 42. Qf3 {[%emt 0:02:25]} Qc1 {[%emt 0:01:45]} 43. Kg2 {[%emt 0:00:45]} Qg5+ {[%emt 0:00:06]} 44. Kh1 {[%emt 0:00:27]} Qe3 {[%emt 0:00:05]} 45. Qa8+ {[%emt 0:00:16]} Ke7 {[%emt 0:00:04]} 46. Qa3+ {[%emt 0:00:52]} Ke8 {[%emt 0:00:23]} 47. Qa8+ {[%emt 0:00:09]} Ke7 {[%emt 0:00:03]} 48. Kg1 {[%emt 0:00:58]} Qxc3 {[%emt 0:01:40]} 49. Qh8 {[%emt 0:00:31]} Qxd4 {[%emt 0:01:13]} 50. Qf6+ {[%emt 0:00:44]} Ke8 {[%emt 0:00:05]} 51. Qh8+ {[%emt 0:00:02]} Ke7 {[%emt 0:00:00]} 52. Qf6+ {[%emt 0:01:14]} Ke8 {[%emt 0:00:11]} 53. Qh8+ {[%emt 0:00:08]} Ke7 {[%emt 0:00:00]} 54. Qf6+ {[%emt 0:01:00]} Ke8 {[%emt 0:00:10]} 55. Bc2 {[%emt 0:00:24]} Qa1+ {[%emt 0:01:52]} 56. Rf1 {[%emt 0:00:35]} Qd4+ {[%emt 0:00:29]} 57. Rf2 {[%emt 0:00:15]} Qg4+ {[%emt 0:01:13]} 58. Kf1 {[%emt 0:00:20]} Qh3+ {[%emt 0:00:21]} 59. Kg1 {[%emt 0:00:32]} Qg4+ {[%emt 0:01:13]} 60. Kf1 {[%emt 0:00:25]} Qh3+ {[%emt 0:00:27]} 61. Kg1 {[%emt 0:00:47]} Qg4+ {[%emt 0:00:46]} 62. Kf1 {[%emt 0:00:36]} Qh3+ {[%emt 0:00:17]} 63. Kg1 {[%emt 0:00:11]} b4 {[%emt 0:00:16]} 64. Qh8+ {[%emt 0:00:31]} Ke7 {[%emt 0:00:33]} 65. Qf6+ {[%emt 0:00:43]} Ke8 {[%emt 0:00:03]} 66. Qh8+ {[%emt 0:00:36]} Ke7 {[%emt 0:00:04]} 67. Qf6+ {[%emt 0:00:04]} Ke8 {[%emt 0:00:03]} 68. Qh8+ {[%emt 0:00:48]} Ke7 {[%emt 0:00:04]} 69. Qf6+ {[%emt 0:00:38]} Ke8 {[%emt 0:00:04]} 70. Qh8+ {[%emt 0:00:25]} Ke7 {[%emt 0:00:03]} 71. Qf6+ {[%emt 0:00:31]} 1/2-1/2

[Event "Eurasia Open Cup 2019"]
[Site "Ekaterinburg"]
[Date "2019.08.02"]
[Round "3.29"]
[White "Voinikonis, Nikita"]
[Black "Klukin, Kirill"]
[Result "1/2-1/2"]
[ECO "A45"]
[WhiteElo "2137"]
[BlackElo "2325"]
[Annotator "NA"]
[PlyCount "82"]
[EventDate "2019.07.31"]
[EventType "swiss"]
[EventCountry "RUS"]
[SourceTitle "playchess.com"]
[Source "ChessBase"]
[SourceQuality "1"]
[TimeControl "5400+30"]

1. d4 {[%emt 0:00:00]} Nf6 {[%emt 0:00:00]} 2. Bg5 {[%emt 0:00:00]} e6 {[%emt 0:01:04]} 3. e4 {[%emt 0:00:00]} h6 {[%emt 0:00:15]} 4. Bxf6 {[%emt 0:00:03]} Qxf6 {[%emt 0:00:10]} 5. c3 {[%emt 0:00:15]} d6 {[%emt 0:04:21]} 6. Nd2 {[%emt 0:00:45]} g6 {[%emt 0:01:31]} 7. Bc4 {[%emt 0:00:30]} Bg7 {[%emt 0:00:36]} 8. Ngf3 {[%emt 0:00:31]} O-O {[%emt 0:00:21]} 9. Qe2 {[%emt 0:00:20]} Nd7 {[%emt 0:01:51]} 10. O-O {[%emt 0:00:46]} a6 {[%emt 0:03:43]} 11. a4 {[%emt 0:00:04]} Qe7 {[%emt 0:06:33]} 12. a5 {[%emt 0:01:56]} e5 {[%emt 0:04:37]} 13. dxe5 {[%emt 0:05:32]} dxe5 {[%emt 0:04:33]} 14. b4 {[%emt 0:01:01]} Nf6 {[%emt 0:03:33]} 15. Nb3 {[%emt 0:03:22]} Nh5 {[%emt 0:03:53]} 16. Qe3 {[%emt 0:06:52]} Nf4 {[%emt 0:05:51]} 17. g3 {[%emt 0:00:35]} Be6 {[%emt 0:01:04]} 18. Bxe6 {[%emt 0:07:32]} Nxe6 {[%emt 0:04:39]} 19. Rad1 {[%emt 0:06:30]} Rfc8 {[%emt 0:00:06]} 20. Nfd2 {[%emt 0:05:35]} b5 {[%emt 0:03:43]} 21. axb6 {[%emt 0:13:03]} cxb6 {[%emt 0:11:44]} 22. Qxb6 {[%emt 0:08:51]} Rxc3 {[%emt 0:00:04]} 23. Ra1 {[%emt 0:02:38]} Rcc8 {[%emt 0:00:10]} 24. b5 {[%emt 0:00:34]} axb5 {[%emt 0:11:29]} 25. Rxa8 {[%emt 0:06:45]} Rxa8 {[%emt 0:05:01]} 26. Qxb5 {[%emt 0:00:09]} Nd4 {[%emt 0:00:00]} 27. Nxd4 {[%emt 0:00:00]} exd4 {[%emt 0:00:41]} 28. Rd1 {[%emt 0:01:25]} Kh7 {[%emt 0:00:00]} 29. h4 {[%emt 0:00:39]} Ra2 {[%emt 0:02:08]} 30. Qd5 {[%emt 0:03:47]} Qa7 {[%emt 0:02:34]} 31. h5 {[%emt 0:02:00]} Ra5 {[%emt 0:01:34]} 32. hxg6+ {[%emt 0:02:21]} fxg6 {[%emt 0:01:12]} 33. Qd6 {[%emt 0:00:08]} Ra2 {[%emt 0:00:04]} 34. Qd5 {[%emt 0:01:26]} Qa6 {[%emt 0:05:12]} 35. Qc4 {[%emt 0:06:00]} Qa5 {[%emt 0:02:47]} 36. Nf3 {[%emt 0:01:27]} Ra4 {[%emt 0:02:27]} 37. Qc6 {[%emt 0:02:12]} Ra3 {[%emt 0:01:26]} 38. e5 {[%emt 0:01:29]} Bxe5 {[%emt 0:01:41]} 39. Nxe5 {[%emt 0:07:25]} Qxe5 {[%emt 0:02:38]} 40. Qd7+ {[%emt 0:03:34]} Qg7 {[%emt 0:00:04]} 41. Qxg7+ {[%emt 0:00:04]} Kxg7 {[%emt 0:00:08]} 1/2-1/2